fUST/lending_fUST_20250630
["ID","MTS","AMOUNT","RATE_DAILY","PERIOD"]
[368665658,1751283046087,-179.8295263,0.000196,2]
[368665659,1751283046096,-153.0,0.000196,2]
[368665660,1751283046106,-793.0,0.00019625,2]
[368665661,1751283046115,-793.0,0.00019652,2]
[368665662,1751283046125,-793.0,0.00019679,2]
[368665663,1751283046134,-460.0,0.00019704,2]
[368665664,1751283046143,-460.0,0.00019704,2]
[368665665,1751283046153,-786.76,0.00019704,2]
[368665666,1751283046163,-608.54,0.00019704,2]
[368665667,1751283046173,-862.62,0.00019704,2]
[368665668,1751283046182,-537.65,0.00019704,2]
[368665669,1751283046192,-460.0,0.00019704,2]
[368665670,1751283046203,-460.0,0.00019704,2]
[368665671,1751283046212,-460.0,0.00019704,2]
[368665672,1751283046222,-915.11,0.00019704,2]
[368665673,1751283046231,-460.0,0.00019705,2]
[368665674,1751283046241,-1236.43,0.00019705,2]
[368665675,1751283046251,-533.12,0.00019705,2]
[368665676,1751283046260,-460.0,0.00019705,2]
[368665677,1751283046269,-460.0,0.00019705,2]
[368665678,1751283046278,-1271.58,0.00019705,2]
[368665679,1751283046288,-508.24,0.00019706,2]
[368665680,1751283046297,-500.0,0.00019706,2]
[368665681,1751283046307,-460.0,0.00019706,2]
[368665682,1751283046316,-988.58,0.00019706,2]
[368665683,1751283046326,-460.0,0.00019706,2]
[368665684,1751283046335,-460.0,0.00019706,2]
[368665685,1751283046345,-460.0,0.00019706,2]
[368665686,1751283046354,-793.0,0.00019707,2]
[368665687,1751283046363,-500.0,0.00019727,2]
[368665688,1751283046372,-793.0,0.00019734,2]
[368665689,1751283046382,-793.0,0.00019762,2]
[368665690,1751283046391,-2151.0,0.00019775,2]
[368665691,1751283046401,-646.0,0.00019775,2]
[368665692,1751283046410,-406.0,0.00019775,2]
[368665693,1751283046419,-423.35,0.00019775,2]
[368665694,1751283046428,-966.0,0.00019775,2]
[368665695,1751283046438,-153.0,0.00019778,2]
[368665696,1751283046447,-793.0,0.00019789,2]
[368665697,1751283046457,-793.0,0.00019816,2]
[368665698,1751283046467,-793.0,0.00019844,2]
[368665699,1751283046476,-793.0,0.00019871,2]
[368665700,1751283046485,-793.0,0.00019899,2]
[368665701,1751283046495,-793.0,0.00019926,2]
[368665702,1751283046504,-1000.0,0.00019932,2]
[368665703,1751283046513,-793.0,0.00019953,2]
[368665704,1751283046523,-460.0,0.00019978,2]
[368665705,1751283046532,-460.0,0.00019978,2]
[368665706,1751283046542,-786.76,0.00019978,2]
[368665707,1751283046551,-608.54,0.00019978,2]
[368665708,1751283046560,-862.62,0.00019978,2]
[368665709,1751283046570,-537.65,0.00019978,2]
[368665710,1751283046580,-460.0,0.00019978,2]
[368665711,1751283046589,-460.0,0.00019978,2]
[368665712,1751283046598,-460.0,0.00019978,2]
[368665713,1751283046608,-915.11,0.00019978,2]
[368665714,1751283046618,-460.0,0.00019979,2]
[368665715,1751283046627,-1236.43,0.00019979,2]
[368665716,1751283046636,-533.12,0.00019979,2]
[368665717,1751283046646,-489.08109876,0.00019979,2]
[368665718,1751283046655,-460.0,0.00019979,2]
[368665719,1751283046664,-1271.58,0.00019979,2]
[368665720,1751283046674,-500.0,0.0001998,2]
[368665721,1751283046684,-460.0,0.0001998,2]
[368665722,1751283046693,-988.58,0.0001998,2]
[368665723,1751283046703,-460.0,0.0001998,2]
[368665724,1751283046712,-460.0,0.0001998,2]
[368665725,1751283046722,-460.0,0.0001998,2]
[368665726,1751283046732,-793.0,0.00019981,2]
[368665727,1751283046741,-793.0,0.00020008,2]
[368665728,1751283046751,-793.0,0.00020036,2]
[368665729,1751283046761,-793.0,0.00020063,2]
[368665730,1751283046770,-793.0,0.0002009,2]
[368665731,1751283046779,-725.142,0.00020105,2]
[368665732,1751283046790,-793.0,0.00020118,2]
[368665733,1751283046799,-807.67335826,0.00020145,2]
[368665734,1751283046809,-188.374313,0.00020187,2]
[368665735,1751283046819,-460.0,0.00020252,2]
[368665736,1751283046829,-460.0,0.00020252,2]
[368665737,1751283046839,-786.76,0.00020252,2]
[368665738,1751283046849,-608.54,0.00020252,2]
[368665739,1751283046863,-862.62,0.00020252,2]
[368665740,1751283046872,-537.65,0.00020252,2]
[368665741,1751283046882,-460.0,0.00020252,2]
[368665742,1751283046892,-460.0,0.00020252,2]
[368665743,1751283046903,-460.0,0.00020252,2]
[368665744,1751283046912,-915.11,0.00020252,2]
[368665745,1751283046922,-460.0,0.00020253,2]
[368665746,1751283046932,-1236.43,0.00020253,2]
[368665747,1751283046942,-533.12,0.00020253,2]
[368665748,1751283046953,-460.0,0.00020253,2]
[368665749,1751283046962,-1271.58,0.00020253,2]
[368665750,1751283046972,-500.0,0.00020254,2]
[368665751,1751283046982,-460.0,0.00020254,2]
[368665752,1751283046991,-988.58,0.00020254,2]
[368665753,1751283047000,-460.0,0.00020254,2]
[368665754,1751283047010,-330.74238532,0.00020254,2]
[368665755,1751283047019,-460.0,0.00020254,2]
[368665756,1751283047029,-500.0,0.00020393,2]
[368665757,1751283047039,-500.0,0.00020393,2]
[368665758,1751283047048,-500.0,0.00020399,2]
[368665759,1751283047057,-641.0,0.000204,2]
[368665760,1751283047067,-215.0738,0.00020421,2]
[368665761,1751283047076,-313.80701211,0.00020427,2]
[368665762,1751283047086,-1500.0,0.0002048,2]
[368665763,1751283047095,-500.0,0.00020496,2]
[368665764,1751283047105,-500.0,0.00020499,2]
[368665765,1751283047114,-500.0,0.00020512,2]
[368665766,1751283047124,-500.0,0.00020512,2]
[368665767,1751283047133,-460.0,0.00020526,2]
[368665768,1751283047143,-460.0,0.00020526,2]
[368665769,1751283047152,-786.76,0.00020526,2]
[368665770,1751283047162,-608.54,0.00020526,2]
[368665771,1751283047171,-862.62,0.00020526,2]
[368665772,1751283047182,-537.65,0.00020526,2]
[368665773,1751283047191,-460.0,0.00020526,2]
[368665774,1751283047201,-460.0,0.00020526,2]
[368665775,1751283047210,-460.0,0.00020526,2]
[368665776,1751283047220,-915.11,0.00020526,2]
[368665777,1751283047229,-460.0,0.00020527,2]
[368665778,1751283047239,-1236.43,0.00020527,2]
[368665779,1751283047248,-533.12,0.00020527,2]
[368665780,1751283047258,-460.0,0.00020527,2]
[368665781,1751283047267,-1271.58,0.00020527,2]
[368665782,1751283047277,-500.0,0.00020528,2]
[368665783,1751283047286,-500.0,0.00020528,2]
[368665784,1751283047296,-391.9,0.00020528,2]
[368665785,1751283047306,-307.06418871,0.00020528,2]
[368665786,1751283047315,-988.58,0.00020528,2]
[368665787,1751283047324,-460.0,0.00020528,2]
[368665788,1751283047334,-460.0,0.00020528,2]
[368665789,1751283047344,-500.0,0.00020533,2]
[368665790,1751283047353,-500.0,0.00020533,2]
[368665791,1751283047362,-420.0,0.00020573,2]
[368665792,1751283047372,-151.0,0.00020762,2]
[368665793,1751283047382,-213.84631524,0.00020762,3]
[368665794,1751283047391,-12569.13231816,0.00020762,3]
[368665795,1751283047401,-160.0,0.00020762,3]
[368665796,1751283047410,-847.41730813,0.00020762,3]
[368665797,1751283047420,-313.80701211,0.00020775,2]
[368665798,1751283047429,-609.905523,0.000208,5]
[368665799,1751283047438,-460.0,0.000208,2]
[368665800,1751283047448,-460.0,0.000208,2]
[368665801,1751283047458,-786.76,0.000208,2]
[368665802,1751283047468,-608.54,0.000208,2]
[368665803,1751283047477,-862.62,0.000208,2]
[368665804,1751283047487,-537.65,0.000208,2]
[368665805,1751283047497,-460.0,0.000208,2]
[368665806,1751283047507,-460.0,0.000208,2]
[368665807,1751283047517,-460.0,0.000208,2]
[368665808,1751283047527,-915.11,0.000208,2]
[368665809,1751283047536,-460.0,0.00020801,2]
[368665810,1751283047546,-1236.43,0.00020801,2]
[368665811,1751283047674,-533.12,0.00020801,2]
[368665812,1751283047684,-460.0,0.00020801,2]
[368665813,1751283047694,-1271.58,0.00020801,2]
[368665814,1751283047704,-988.58,0.00020802,2]
[368665815,1751283047713,-460.0,0.00020802,2]
[368665816,1751283047723,-460.0,0.00020802,2]
[368665817,1751283047733,-150.97732473,0.00020822,2]
[368665818,1751283047743,-7569.65115318,0.00020866,2]
[368665819,1751283047754,-12500.0,0.00020874,2]
[368665820,1751283047764,-151.0,0.00020875,2]
[368665821,1751283047774,-151.0,0.00020875,2]
[368665822,1751283047783,-151.0,0.00020879,2]
[368665823,1751283047793,-12500.0,0.00020879,2]
[368665824,1751283047803,-151.0,0.00020883,2]
[368665825,1751283047812,-151.0,0.00020883,2]
[368665826,1751283047822,-151.0,0.00020883,2]
[368665827,1751283047832,-12500.0,0.00020883,2]
[368665828,1751283047841,-2200.0,0.00020884,2]
[368665829,1751283047852,-151.0,0.00020888,2]
[368665830,1751283047863,-151.0,0.00020888,2]
[368665831,1751283047872,-151.0,0.00020888,2]
[368665832,1751283047882,-151.0,0.00020888,2]
[368665833,1751283047893,-12500.0,0.00020888,2]
[368665834,1751283047904,-160.0,0.00020889,5]
[368665835,1751283047913,-7499.53277252,0.00020894,2]
[368665836,1751283047923,-12500.0,0.00020897,2]
[368665837,1751283047934,-151.0,0.00020897,2]
[368665838,1751283047944,-4154.30910598,0.000209,4]
[368665839,1751283047954,-150.97732473,0.00020904,2]
[368665840,1751283047964,-500.0,0.0002091,2]
[368665841,1751283047973,-330.0,0.00020945,2]
[368665842,1751283047983,-151.0,0.00020986,2]
[368665843,1751283047992,-151.0,0.00020986,2]
[368665844,1751283048001,-168.0,0.00020988,2]
[368665845,1751283048011,-151.0,0.00020988,2]
[368665846,1751283048020,-151.0,0.0002099,2]
[368665847,1751283048030,-41955.69073197,0.0002099,2]
[368665848,1751283048040,-184.32220804,0.00020999,2]
[368665849,1751283048049,-637.43229346,0.00020999,2]
[368665850,1751283048059,-500.0,0.00020999,2]
[368665851,1751283048068,-500.0,0.00020999,2]
[368665852,1751283048078,-500.0,0.00020999,2]
[368665853,1751283048087,-526.22934562,0.00020999,2]
[368665854,1751283048098,-500.0,0.00020999,2]
[368665855,1751283048108,-500.0,0.00020999,2]
[368665856,1751283048117,-500.0,0.00020999,2]
[368665857,1751283048127,-500.0,0.00020999,2]
[368665858,1751283048137,-500.0,0.00020999,2]
[368665859,1751283048147,-500.0,0.00020999,2]
[368665860,1751283048158,-500.0,0.00020999,2]
[368665861,1751283048167,-500.0,0.00020999,2]
[368665862,1751283048177,-500.0,0.00020999,2]
[368665863,1751283048187,-500.0,0.00021,2]
[368665864,1751283048197,-279.79146473,0.00021,2]
[368665865,1751283048207,-500.0,0.00021,2]
[368665866,1751283048217,-4001.93,0.00021,2]
[368665867,1751283048227,-312.58,0.00021,3]
[368665868,1751283048237,-3000.0,0.00021,2]
[368665869,1751283048246,-19252.0,0.00021,2]
[368665870,1751283048256,-5123.12,0.00021,2]
[368665871,1751283048266,-151.0,0.00021,2]
[368665872,1751283048275,-151.0,0.00021,2]
[368665873,1751283048284,-151.0,0.00021,2]
[368665874,1751283048294,-3000.0,0.0002101,2]
[368665875,1751283048303,-150.97732473,0.00021014,2]
[368665876,1751283048312,-3000.0,0.0002102,2]
[368665877,1751283048322,-934.12495113,0.00021028,2]
[368665878,1751283048331,-3000.0,0.0002103,2]
[368665879,1751283048341,-4154.30910582,0.00021038,4]
[368665880,1751283048350,-3000.0,0.0002104,2]
[368665881,1751283048359,-3000.0,0.0002105,2]
[368665882,1751283048369,-3000.0,0.0002106,2]
[368665883,1751283048378,-3000.0,0.0002107,2]
[368665884,1751283048387,-460.0,0.00021074,2]
[368665885,1751283048396,-460.0,0.00021074,2]
[368665886,1751283048407,-786.76,0.00021074,2]
[368665887,1751283048416,-608.54,0.00021074,2]
[368665888,1751283048427,-862.62,0.00021074,2]
[368665889,1751283048436,-537.65,0.00021074,2]
[368665890,1751283048454,-460.0,0.00021074,2]
[368665891,1751283048466,-460.0,0.00021074,2]
[368665892,1751283048476,-586.37478011,0.00021074,2]
[368665893,1751283048487,-915.11,0.00021074,2]
[368665894,1751283048497,-460.0,0.00021075,2]
[368665895,1751283048507,-1236.43,0.00021075,2]
[368665896,1751283048517,-533.12,0.00021075,2]
[368665897,1751283048529,-460.0,0.00021075,2]
[368665898,1751283048540,-1271.58,0.00021075,2]
[368665899,1751283048550,-988.58,0.00021076,2]
[368665900,1751283048560,-279.62288824,0.00021076,2]
[368665901,1751283048570,-460.0,0.00021076,2]
[368665902,1751283048580,-3000.0,0.0002108,2]
[368665903,1751283048589,-2616.20542981,0.0002109,2]
[368665904,1751283048608,-277.38375,0.0002109,2]
[368665907,1751283228362,190.75271,0.00013699,2]
[368665913,1751283541834,8480.91578019,0.00017992,2]
[368665914,1751283541881,10000.0,0.00017992,2]
[368665915,1751283541911,6419.08421981,0.00017992,2]
[368665916,1751283801281,332.607889,0.00017999,2]
[368665918,1751283864001,188.3035817,0.00017999,2]
[368665920,1751283934516,167.42025609,0.00017963,2]
[368665924,1751284059110,167.42025608,0.00017963,2]
[368666026,1751284232171,-232.47647948,0.00018316,2]
[368666027,1751284232182,-221.65411012,0.00018316,2]
[368666028,1751284232192,-300.0,0.0001888,2]
[368666029,1751284232202,-955.0,0.0001888,2]
[368666030,1751284232212,-472.27476788,0.00018881,2]
[368666031,1751284232221,-460.0,0.00018881,2]
[368666032,1751284232231,-430.0,0.00018881,2]
[368666033,1751284232244,-312.83649756,0.00018881,2]
[368666034,1751284232254,-478.14,0.00018881,2]
[368666035,1751284232263,-460.0,0.00018881,2]
[368666036,1751284232272,-293.22972823,0.00018881,2]
[368666065,1751284238053,-166.77027177,0.00018881,2]
[368666067,1751284238064,-460.0,0.00018881,2]
[368666069,1751284238073,-460.0,0.00018881,2]
[368666071,1751284238083,-460.0,0.00018882,2]
[368666073,1751284238093,-228.10172823,0.00018882,2]
[368666076,1751284238106,-271.89827177,0.00018882,2]
[368666078,1751284238116,-166.38,0.00018883,2]
[368666080,1751284238125,-500.00000001,0.00018884,2]
[368666082,1751284238135,-316.95497716,0.000189,2]
[368666083,1751284238143,-168.05127453,0.00018984,2]
[368666086,1751284238153,-460.0,0.00018999,2]
[368666087,1751284238162,-207.4,0.00019051,2]
[368666089,1751284238172,-264.49259026,0.00019056,2]
[368666093,1751284238191,-460.0,0.00019062,2]
[368666095,1751284238202,-460.0,0.00019062,2]
[368666097,1751284238212,-460.0,0.00019062,2]
[368666099,1751284238221,-460.0,0.00019062,2]
[368666101,1751284238231,-460.0,0.00019062,2]
[368666103,1751284238245,-669.21,0.00019062,2]
[368666105,1751284238255,-104.49188627,0.00019062,2]
[368666108,1751284238273,-355.50811373,0.00019062,2]
[368666110,1751284238282,-118.80293708,0.00019062,2]
[368666112,1751284238295,-341.19706292,0.00019062,2]
[368666116,1751284238304,-460.0,0.00019062,2]
[368666119,1751284238314,-460.0,0.00019062,2]
[368666122,1751284238324,-566.96,0.00019062,2]
[368666124,1751284238333,-4.44129825,0.00019062,2]
[368666126,1751284238345,-455.55870175,0.00019062,2]
[368666128,1751284238355,-460.0,0.00019062,2]
[368666130,1751284238365,-491.77,0.00019062,2]
[368666132,1751284238374,-597.96,0.00019062,2]
[368666134,1751284238384,-617.86,0.00019062,2]
[368666136,1751284238394,-460.0,0.00019062,2]
[368666138,1751284238403,-602.27,0.00019062,2]
[368666140,1751284238413,-460.0,0.00019062,2]
[368666142,1751284238422,-420.2807049,0.00019062,2]
[368666144,1751284238432,-181.79842929,0.00019062,2]
[368666146,1751284238444,-278.20157071,0.00019062,2]
[368666148,1751284238454,-250.69552047,0.00019062,2]
[368666151,1751284238470,-209.30447953,0.00019062,2]
[368666153,1751284238479,-460.0,0.00019062,2]
[368666155,1751284238489,-460.0,0.00019062,2]
[368666157,1751284238498,-460.0,0.00019062,2]
[368666159,1751284238508,-474.73564748,0.00019062,2]
[368666161,1751284238517,-356.27553127,0.00019062,2]
[368666163,1751284238527,-460.0,0.00019062,2]
[368666165,1751284238537,-500.0,0.00019073,2]
[368666167,1751284238546,-500.0,0.00019073,2]
[368666169,1751284238555,-500.0,0.00019073,2]
[368666171,1751284238564,-500.0,0.00019073,2]
[368666174,1751284238574,-500.0,0.00019073,2]
[368666176,1751284238584,-500.0,0.00019073,2]
[368666178,1751284238594,-500.0,0.00019073,2]
[368666180,1751284238604,-500.0,0.00019073,2]
[368666182,1751284238614,-500.0,0.00019073,2]
[368666184,1751284238623,-500.0,0.00019073,2]
[368666204,1751284238633,-500.0,0.00019073,2]
[368666207,1751284238814,-500.0,0.00019073,2]
[368666209,1751284238824,-500.0,0.00019073,2]
[368666211,1751284238833,-500.0,0.00019073,2]
[368666213,1751284238843,-500.0,0.00019073,2]
[368666215,1751284238852,-500.0,0.00019073,2]
[368666217,1751284238861,-500.0,0.00019073,2]
[368666219,1751284238871,-214.99848635,0.00019083,2]
[368666221,1751284238881,-847.41730813,0.00019083,2]
[368666223,1751284238890,-160.0,0.00019083,2]
[368666225,1751284238900,-230.31346914,0.00019083,2]
[368666227,1751284238910,-837.16779106,0.00019083,2]
[368666229,1751284238919,-160.0,0.00019083,2]
[368666231,1751284238928,-213.84631524,0.00019083,2]
[368666233,1751284238938,-460.0,0.00019084,2]
[368666235,1751284238947,-460.0,0.00019084,2]
[368666237,1751284238956,-460.0,0.00019084,2]
[368666239,1751284238966,-460.0,0.00019084,2]
[368666241,1751284238975,-460.0,0.00019084,2]
[368666243,1751284238985,-460.0,0.00019084,2]
[368666245,1751284238994,-772.77,0.00019084,2]
[368666247,1751284239004,-460.0,0.00019084,2]
[368666249,1751284239013,-460.0,0.00019084,2]
[368666251,1751284239023,-460.0,0.00019084,2]
[368666253,1751284239032,-460.0,0.00019084,2]
[368666255,1751284239041,-460.0,0.00019084,2]
[368666257,1751284239052,-12569.13231816,0.00019084,2]
[368666259,1751284239063,-535.15,0.00019155,2]
[368666260,1751284239072,-460.0,0.00019156,2]
[368666261,1751284239081,-192.144994,0.00019178,2]
[368666262,1751284239091,-460.0,0.00019273,2]
[368666263,1751284239100,-669.21,0.00019336,2]
[368666264,1751284239110,-460.0,0.00019336,2]
[368666265,1751284239119,-460.0,0.00019336,2]
[368666266,1751284239128,-366.79,0.00019336,2]
[368666267,1751284239140,-491.77,0.00019336,2]
[368666268,1751284239149,-597.96,0.00019336,2]
[368666269,1751284239158,-617.86,0.00019336,2]
[368666270,1751284239167,-460.0,0.00019336,2]
[368666271,1751284239178,-602.27,0.00019336,2]
[368666272,1751284239187,-460.0,0.00019336,2]
[368666273,1751284239200,-388.33,0.00019336,2]
[368666274,1751284239209,-460.0,0.00019336,2]
[368666275,1751284239218,-460.0,0.00019336,2]
[368666276,1751284239227,-460.0,0.00019336,2]
[368666277,1751284239240,-460.0,0.00019336,2]
[368666278,1751284239250,-3031.73268458,0.00019357,2]
[368666279,1751284239263,-15265.24310542,0.00019357,2]
[368666280,1751284239272,-460.0,0.00019358,2]
[368666281,1751284239283,-772.77,0.00019358,2]
[368666282,1751284239293,-460.0,0.00019358,2]
[368666283,1751284239303,-228.81810084,0.00019358,2]
[368666284,1751284239313,-460.0,0.0001943,2]
[368666285,1751284239323,-460.0,0.00019547,2]
[368666286,1751284239332,-500.0,0.00019582,2]
[368666287,1751284239342,-669.21,0.0001961,2]
[368666288,1751284239351,-460.0,0.0001961,2]
[368666289,1751284239361,-460.0,0.0001961,2]
[368666290,1751284239370,-491.77,0.0001961,2]
[368666291,1751284239379,-597.96,0.0001961,2]
[368666292,1751284239389,-617.86,0.0001961,2]
[368666293,1751284239399,-460.0,0.0001961,2]
[368666294,1751284239408,-602.27,0.0001961,2]
[368666295,1751284239417,-460.0,0.0001961,2]
[368666296,1751284239426,-460.0,0.0001961,2]
[368666297,1751284239436,-500.0,0.0001963,2]
[368666298,1751284239445,-500.0,0.0001963,2]
[368666299,1751284239454,-772.77,0.00019632,2]
[368666300,1751284239463,-600.00950402,0.00019632,2]
[368666301,1751284239473,-460.0,0.00019704,2]
[368666302,1751284239482,-160.0,0.00019816,3]
[368666303,1751284239492,-460.0,0.00019821,2]
[368666304,1751284239501,-966.0,0.00019872,2]
[368666305,1751284239511,-81.37853483,0.00019872,2]
[368666306,1751284239527,-564.62146517,0.00019872,2]
[368666307,1751284239536,-2151.0,0.00019872,2]
[368666308,1751284239545,-241.426,0.00019872,2]
[368666309,1751284239555,-423.35,0.00019872,2]
[368666310,1751284239564,-40.40041194,0.00019872,2]
[368666341,1751284243180,-112.23558806,0.00019872,2]
[368666343,1751284243191,-179.787,0.00019872,2]
[368666345,1751284243200,-57.9132903,0.00019872,2]
[368666463,1751284246211,-211.30331811,0.000189,2]
[368666464,1751284246221,-143.5817097,0.00019872,2]
[368666465,1751284246230,-460.0,0.00019884,2]
[368666466,1751284246243,-460.0,0.00019884,2]
[368666467,1751284246253,-491.77,0.00019884,2]
[368666468,1751284246263,-597.96,0.00019884,2]
[368666469,1751284246273,-346.90774603,0.00019884,2]
[368666473,1751284313406,200.309319,0.00013699,2]
[368666557,1751284466867,2999.97,0.00021918,60]
[368666564,1751284626578,2524.85447832,0.00018058,2]
[368666565,1751284626602,10000.0,0.00018058,2]
[368666566,1751284626625,10000.0,0.00018058,2]
[368666567,1751284626647,2375.14552168,0.00018058,2]
[368666583,1751284946509,274.932311,0.00018022,2]
[368666603,1751285020881,187.757758,0.00017637,2]
[368666604,1751285021278,173.150913,0.00017845,2]
[368666605,1751285026944,169.3099609,0.00017888,2]
[368666606,1751285047691,200.87230318,6e-07,2]
[368666609,1751285095350,1037.1549254,0.00018082,2]
[368666846,1751285124998,10000.0,0.00017846,2]
[368667238,1751285299097,258.894854,0.00013699,2]
[368667239,1751285323660,324.15469909,0.00017766,2]
[368667257,1751285432356,-180.00360007,0.00018183,2]
[368667258,1751285432367,-185.667847,0.00018187,2]
[368667259,1751285432376,-571.77789948,0.00018315,2]
[368667260,1751285432386,-166.0,0.00018397,2]
[368667261,1751285432395,-183.924231,0.00018412,2]
[368667262,1751285432404,-178.0,0.0001875,2]
[368667263,1751285432413,-176.3283935,0.00018962,2]
[368667264,1751285432423,-340.0,0.00018998,2]
[368667265,1751285432432,-300.0,0.00018999,2]
[368667266,1751285432442,-300.0,0.00018999,2]
[368667267,1751285432451,-300.0,0.00018999,2]
[368667268,1751285432460,-663.0,0.00018999,2]
[368667269,1751285432469,-159.319357,0.00019,2]
[368667270,1751285432478,-95.23177308,0.00019,2]
[368667271,1751285432490,-82.33597052,0.00019,2]
[368667272,1751285432499,-307.389046,0.00019,2]
[368667273,1751285432509,-159.319357,0.00019,2]
[368667275,1751285432519,-177.5677436,0.00019,2]
[368667276,1751285432528,-159.15979,0.00019,2]
[368667278,1751285432537,-153.0000001,0.00019,2]
[368667279,1751285432546,-177.3641341,0.00019,2]
[368667280,1751285432556,-160.0,0.00019054,2]
[368667281,1751285432565,-60.64899106,0.00019059,2]
[368667282,1751285432576,-467.09929999,0.00019059,2]
[368667283,1751285432588,-53.46198829,0.00019059,2]
[368667284,1751285432598,-540.0,0.00019059,2]
[368667285,1751285432608,-219.2682285,0.00019059,2]
[368667286,1751285432619,-460.0,0.00019059,2]
[368667287,1751285432629,-460.0,0.00019059,2]
[368667288,1751285432639,-879.65,0.00019059,2]
[368667289,1751285432648,-673.86,0.00019059,2]
[368667290,1751285432658,-460.0,0.00019059,2]
[368667291,1751285432668,-460.0,0.00019059,2]
[368667292,1751285432677,-460.0,0.00019059,2]
[368667293,1751285432687,-890.45,0.00019059,2]
[368667294,1751285432696,-784.15,0.00019059,2]
[368667295,1751285432706,-460.0,0.00019059,2]
[368667296,1751285432715,-1006.98,0.00019059,2]
[368667297,1751285432725,-460.0,0.00019059,2]
[368667298,1751285432737,-460.0,0.00019059,2]
[368667299,1751285432746,-460.0,0.00019059,2]
[368667300,1751285432756,-460.0,0.00019059,2]
[368667301,1751285432765,-460.0,0.00019059,2]
[368667302,1751285432775,-460.0,0.00019059,2]
[368667303,1751285432784,-460.0,0.00019059,2]
[368667304,1751285432793,-460.0,0.00019059,2]
[368667305,1751285432802,-201.48141759,0.00019059,2]
[368667306,1751285432819,-258.51858241,0.00019059,2]
[368667307,1751285432828,-302.50088077,0.00019059,2]
[368667308,1751285432839,-157.49911923,0.00019059,2]
[368667309,1751285432848,-309.03754299,0.00019059,2]
[368667310,1751285432859,-150.96245701,0.00019059,2]
[368667311,1751285432868,-460.0,0.00019059,2]
[368667313,1751285432877,-460.0,0.00019059,2]
[368667315,1751285432886,-192.89041772,0.0001906,2]
[368667317,1751285432896,-460.0,0.0001906,2]
[368667319,1751285432906,-460.0,0.0001906,2]
[368667321,1751285432915,-460.0,0.0001906,2]
[368667323,1751285432924,-455.43294147,0.0001906,2]
[368667375,1751285438468,-460.0,0.00019059,2]
[368667377,1751285438478,-4.56705853,0.0001906,2]
[368667379,1751285438487,-263.63254147,0.0001906,2]
[368667381,1751285438498,-196.36745853,0.0001906,2]
[368667383,1751285438508,-460.0,0.0001906,2]
[368667385,1751285438519,-460.0,0.0001906,2]
[368667387,1751285438528,-460.0,0.0001906,2]
[368667389,1751285438538,-106.84924681,0.0001906,2]
[368667391,1751285438550,-353.15075319,0.0001906,2]
[368667393,1751285438559,-460.0,0.0001906,2]
[368667395,1751285438568,-460.0,0.0001906,2]
[368667397,1751285438578,-468.18712179,0.0001906,2]
[368667399,1751285438587,-460.0,0.0001906,2]
[368667401,1751285438597,-460.0,0.0001906,2]
[368667403,1751285438606,-460.0,0.0001906,2]